[Event "Titled Tuesday Blitz August 22 Early 2023"]
[White "Haug, Havard"]
[Black "Jovic, Stanoje"]
[WhiteFideId "1547887"]
[BlackFideId "905020"]
[WhiteElo "2637"]
[BlackElo "2543"]
[Result "1-0"]
[Round "11"]
[TimeControl "180+1"]
[Date "2023.08.22"]
[WhiteClock "0:00:53"]
[BlackClock "0:00:00"]
[Board "68"]

1. e4 {[%clk 0:03:00]}  c6 {[%clk 0:02:59]} 2. d4 {[%clk 0:02:59]}  d5 {[%clk 0:02:59]} 3. exd5 {[%clk 0:03:00]}  cxd5 {[%clk 0:02:59]} 4. Bd3 {[%clk 0:03:01]}  Nc6 {[%clk 0:02:59]} 5. c3 {[%clk 0:03:00]}  g6 {[%clk 0:02:59]} 6. h3 {[%clk 0:02:56]}  Nh6 {[%clk 0:02:59]} 7. Nf3 {[%clk 0:02:56]}  f6 {[%clk 0:02:59]} 8. Bxh6 {[%clk 0:02:46]}  Bxh6 {[%clk 0:02:58]} 9. O-O {[%clk 0:02:47]}  O-O {[%clk 0:02:56]} 10. c4 {[%clk 0:02:47]}  dxc4 {[%clk 0:02:53]} 11. Bxc4+ {[%clk 0:02:47]}  Kg7 {[%clk 0:02:53]} 12. Re1 {[%clk 0:02:47]}  e5 {[%clk 0:02:48]} 13. dxe5 {[%clk 0:02:45]}  fxe5 {[%clk 0:02:39]} 14. Nc3 {[%clk 0:02:42]}  Qxd1 {[%clk 0:02:34]} 15. Rexd1 {[%clk 0:02:43]}  Bxh3 {[%clk 0:02:22]} 16. gxh3 {[%clk 0:02:37]}  Rxf3 {[%clk 0:02:20]} 17. Rd7+ {[%clk 0:02:34]}  Kh8 {[%clk 0:02:20]} 18. Kg2 {[%clk 0:02:33]}  Raf8 {[%clk 0:02:18]} 19. Ne4 {[%clk 0:02:29]}  R3f4 {[%clk 0:02:06]} 20. Bd5 {[%clk 0:02:26]}  Nd4 {[%clk 0:01:53]} 21. Rc1 {[%clk 0:02:14]}  Rxf2+ {[%clk 0:01:32]} 22. Nxf2 {[%clk 0:02:15]}  Bxc1 {[%clk 0:01:32]} 23. Ne4 {[%clk 0:02:14]}  Nf5 {[%clk 0:01:25]} 24. Bxb7 {[%clk 0:02:07]}  Ne3+ {[%clk 0:01:19]} 25. Kg3 {[%clk 0:02:05]}  h5 {[%clk 0:01:12]} 26. h4 {[%clk 0:01:59]}  Nf5+ {[%clk 0:01:11]} 27. Kh3 {[%clk 0:01:58]}  Be3 {[%clk 0:00:53]} 28. Bd5 {[%clk 0:01:53]}  Nd4 {[%clk 0:00:50]} 29. Nd6 {[%clk 0:01:35]}  Rf2 {[%clk 0:00:32]} 30. Nf7+ {[%clk 0:01:33]}  Kg7 {[%clk 0:00:30]} 31. Nxe5+ {[%clk 0:01:26]}  Kf8 {[%clk 0:00:26]} 32. Nxg6+ {[%clk 0:01:08]}  Ke8 {[%clk 0:00:26]} 33. Re7+ {[%clk 0:01:07]}  Kd8 {[%clk 0:00:24]} 34. Rxe3 {[%clk 0:01:08]}  Rxb2 {[%clk 0:00:22]} 35. Nf4 {[%clk 0:01:06]}  a5 {[%clk 0:00:17]} 36. Ne6+ {[%clk 0:01:05]}  Nxe6 {[%clk 0:00:15]} 37. Bxe6 {[%clk 0:01:06]}  Kc7 {[%clk 0:00:12]} 38. Kg3 {[%clk 0:01:04]}  Kd6 {[%clk 0:00:12]} 39. Kf4 {[%clk 0:01:04]}  Rg2 {[%clk 0:00:11]} 40. Bf5 {[%clk 0:01:03]}  a4 {[%clk 0:00:10]} 41. a3 {[%clk 0:01:01]}  Kc5 {[%clk 0:00:09]} 42. Ke5 {[%clk 0:01:01]}  Rh2 {[%clk 0:00:08]} 43. Re4 {[%clk 0:01:01]}  Kb5 {[%clk 0:00:04]} 44. Bd7+ {[%clk 0:00:57]}  Kc5 {[%clk 0:00:03]} 45. Bxa4 {[%clk 0:00:56]}  Rh3 {[%clk 0:00:02]} 46. Be8 {[%clk 0:00:54]}  Rxa3 {[%clk 0:00:02]} 47. Bxh5 {[%clk 0:00:54]}  Kc6 {[%clk 0:00:02]} 48. Kf5 {[%clk 0:00:54]}  Kd6 {[%clk 0:00:01]} 49. Kg5 {[%clk 0:00:53]}  Ra5+ {[%clk 0:00:00]} 50. Kh6 {[%clk 0:00:53]} 1-0


[Site "https://www.chess.com"]

[Event "Titled Tuesday Blitz August 22 Early 2023"]
[White "Sipila, Vilka"]
[Black "Jaskolka, Tomasz"]
[WhiteFideId "505455"]
[BlackFideId "1170791"]
[WhiteElo "2620"]
[BlackElo "2539"]
[Result "1-0"]
[Round "11"]
[TimeControl "180+1"]
[Date "2023.08.22"]
[WhiteClock "0:00:07"]
[BlackClock "0:00:03"]
[Board "69"]

1. Nc3 {[%clk 0:03:00]}  Nf6 {[%clk 0:02:57]} 2. Nf3 {[%clk 0:02:55]}  d5 {[%clk 0:02:57]} 3. d4 {[%clk 0:02:54]}  Bf5 {[%clk 0:02:56]} 4. Bf4 {[%clk 0:02:53]}  c6 {[%clk 0:02:56]} 5. Nh4 {[%clk 0:02:44]}  Bg4 {[%clk 0:02:50]} 6. f3 {[%clk 0:02:39]}  Bh5 {[%clk 0:02:49]} 7. g4 {[%clk 0:02:38]}  Bg6 {[%clk 0:02:50]} 8. Ng2 {[%clk 0:02:09]}  e6 {[%clk 0:02:47]} 9. h4 {[%clk 0:02:08]}  h5 {[%clk 0:02:47]} 10. g5 {[%clk 0:02:07]}  Nfd7 {[%clk 0:02:47]} 11. e4 {[%clk 0:02:06]}  Bb4 {[%clk 0:02:41]} 12. Qd2 {[%clk 0:01:59]}  dxe4 {[%clk 0:02:36]} 13. a3 {[%clk 0:01:57]}  exf3 {[%clk 0:02:33]} 14. axb4 {[%clk 0:01:55]}  fxg2 {[%clk 0:02:33]} 15. Bxg2 {[%clk 0:01:55]}  Nb6 {[%clk 0:02:30]} 16. b5 {[%clk 0:01:55]}  Nc4 {[%clk 0:02:11]} 17. Qf2 {[%clk 0:01:49]}  Nxb2 {[%clk 0:01:47]} 18. Bxb8 {[%clk 0:01:47]}  Rxb8 {[%clk 0:01:36]} 19. bxc6 {[%clk 0:01:47]}  O-O {[%clk 0:01:36]} 20. cxb7 {[%clk 0:01:47]}  Qc7 {[%clk 0:01:35]} 21. Nb5 {[%clk 0:01:39]}  Qc4 {[%clk 0:01:25]} 22. Nxa7 {[%clk 0:01:36]}  Qc3+ {[%clk 0:01:13]} 23. Qd2 {[%clk 0:01:23]}  Qg3+ {[%clk 0:01:09]} 24. Kf1 {[%clk 0:01:21]}  Nc4 {[%clk 0:01:04]} 25. Qf2 {[%clk 0:01:13]}  Qc3 {[%clk 0:00:56]} 26. Re1 {[%clk 0:00:54]}  Qa3 {[%clk 0:00:29]} 27. Nc8 {[%clk 0:00:31]}  Qa6 {[%clk 0:00:21]} 28. Ne7+ {[%clk 0:00:25]}  Kh7 {[%clk 0:00:20]} 29. Kg1 {[%clk 0:00:20]}  Rxb7 {[%clk 0:00:20]} 30. Nxg6 {[%clk 0:00:18]}  fxg6 {[%clk 0:00:10]} 31. Qxf8 {[%clk 0:00:13]}  Rb2 {[%clk 0:00:09]} 32. Bf1 {[%clk 0:00:10]}  Rxc2 {[%clk 0:00:07]} 33. Rh2 {[%clk 0:00:08]}  Rxh2 {[%clk 0:00:06]} 34. Kxh2 {[%clk 0:00:09]}  Qa2+ {[%clk 0:00:07]} 35. Kg1 {[%clk 0:00:08]}  Nd2 {[%clk 0:00:05]} 36. Qf2 {[%clk 0:00:08]}  Qa5 {[%clk 0:00:03]} 37. Rxe6 {[%clk 0:00:07]}  Nb3 {[%clk 0:00:03]} 38. Bd3 {[%clk 0:00:07]}  Qa1+ {[%clk 0:00:02]} 39. Kh2 {[%clk 0:00:07]}  Nxd4 {[%clk 0:00:03]} 40. Bxg6+ {[%clk 0:00:06]}  Kg8 {[%clk 0:00:03]} 41. Re8# {[%clk 0:00:07]} 1-0


[Site "https://www.chess.com"]

[Event "Titled Tuesday Blitz August 22 Early 2023"]
[White "Tologon tegin, Semetei"]
[Black "Marn, Jan"]
[WhiteFideId "13800574"]
[BlackFideId "14619245"]
[WhiteElo "2606"]
[BlackElo "2502"]
[Result "0-1"]
[Round "11"]
[TimeControl "180+1"]
[Date "2023.08.22"]
[WhiteClock "0:00:00"]
[BlackClock "0:00:03"]
[Board "72"]

1. e4 {[%clk 0:02:50]}  e5 {[%clk 0:02:59]} 2. Nf3 {[%clk 0:02:43]}  Nc6 {[%clk 0:02:58]} 3. Bb5 {[%clk 0:02:39]}  a6 {[%clk 0:02:55]} 4. Ba4 {[%clk 0:02:35]}  b5 {[%clk 0:02:52]} 5. Bb3 {[%clk 0:02:34]}  Na5 {[%clk 0:02:52]} 6. Bxf7+ {[%clk 0:01:34]}  Kxf7 {[%clk 0:02:52]} 7. Nxe5+ {[%clk 0:01:34]}  Ke7 {[%clk 0:02:42]} 8. Qh5 {[%clk 0:01:15]}  Qe8 {[%clk 0:02:42]} 9. Qh4+ {[%clk 0:01:15]}  Nf6 {[%clk 0:02:41]} 10. d4 {[%clk 0:01:05]}  d6 {[%clk 0:02:39]} 11. Nf3 {[%clk 0:01:01]}  Kd8 {[%clk 0:02:36]} 12. e5 {[%clk 0:01:00]}  Be7 {[%clk 0:02:33]} 13. O-O {[%clk 0:00:56]}  Ng4 {[%clk 0:02:24]} 14. Qg3 {[%clk 0:00:55]}  Qg6 {[%clk 0:02:10]} 15. Nc3 {[%clk 0:00:36]}  Bb7 {[%clk 0:01:59]} 16. exd6 {[%clk 0:00:14]}  Bxd6 {[%clk 0:01:32]} 17. Bg5+ {[%clk 0:00:13]}  Qxg5 {[%clk 0:01:33]} 18. Nxg5 {[%clk 0:00:12]}  Bxg3 {[%clk 0:01:33]} 19. hxg3 {[%clk 0:00:13]}  Kd7 {[%clk 0:01:27]} 20. f3 {[%clk 0:00:11]}  Ne3 {[%clk 0:01:27]} 21. Rf2 {[%clk 0:00:11]}  h6 {[%clk 0:01:26]} 22. Nf7 {[%clk 0:00:12]}  Rhe8 {[%clk 0:01:17]} 23. Ne5+ {[%clk 0:00:13]}  Kd6 {[%clk 0:01:15]} 24. b3 {[%clk 0:00:11]}  Nd5 {[%clk 0:01:14]} 25. Ne4+ {[%clk 0:00:11]}  Ke7 {[%clk 0:01:10]} 26. Re1 {[%clk 0:00:11]}  Kf8 {[%clk 0:01:10]} 27. Nc5 {[%clk 0:00:12]}  Bc8 {[%clk 0:01:05]} 28. Rfe2 {[%clk 0:00:12]}  Nf6 {[%clk 0:00:57]} 29. b4 {[%clk 0:00:10]}  Nc4 {[%clk 0:00:57]} 30. Ng6+ {[%clk 0:00:09]}  Kf7 {[%clk 0:00:57]} 31. Ne5+ {[%clk 0:00:10]}  Kg8 {[%clk 0:00:56]} 32. Nxc4 {[%clk 0:00:09]}  Rxe2 {[%clk 0:00:56]} 33. Rxe2 {[%clk 0:00:10]}  bxc4 {[%clk 0:00:57]} 34. Re7 {[%clk 0:00:09]}  Nd5 {[%clk 0:00:54]} 35. Re8+ {[%clk 0:00:09]}  Kf7 {[%clk 0:00:54]} 36. Rd8 {[%clk 0:00:09]}  Nb6 {[%clk 0:00:50]} 37. c3 {[%clk 0:00:07]}  a5 {[%clk 0:00:43]} 38. a3 {[%clk 0:00:06]}  axb4 {[%clk 0:00:43]} 39. axb4 {[%clk 0:00:07]}  Bf5 {[%clk 0:00:42]} 40. Rxa8 {[%clk 0:00:06]}  Nxa8 {[%clk 0:00:43]} 41. g4 {[%clk 0:00:06]}  Bc2 {[%clk 0:00:41]} 42. Kf2 {[%clk 0:00:07]}  Nb6 {[%clk 0:00:41]} 43. Ke3 {[%clk 0:00:07]}  Nd5+ {[%clk 0:00:41]} 44. Kd2 {[%clk 0:00:08]}  Bb1 {[%clk 0:00:41]} 45. g3 {[%clk 0:00:06]}  c6 {[%clk 0:00:41]} 46. Nd7 {[%clk 0:00:06]}  Ke6 {[%clk 0:00:39]} 47. Ne5 {[%clk 0:00:07]}  Nb6 {[%clk 0:00:32]} 48. Nxc6 {[%clk 0:00:07]}  Bd3 {[%clk 0:00:29]} 49. Ne5 {[%clk 0:00:07]}  Bf1 {[%clk 0:00:28]} 50. Ng6 {[%clk 0:00:06]}  Nd5 {[%clk 0:00:20]} 51. Ne5 {[%clk 0:00:06]}  Kd6 {[%clk 0:00:18]} 52. Nf7+ {[%clk 0:00:06]}  Kc6 {[%clk 0:00:18]} 53. Nd8+ {[%clk 0:00:06]}  Kb5 {[%clk 0:00:18]} 54. Ne6 {[%clk 0:00:06]}  g5 {[%clk 0:00:16]} 55. Nc5 {[%clk 0:00:05]}  Bg2 {[%clk 0:00:15]} 56. Ne4 {[%clk 0:00:03]}  Bxf3 {[%clk 0:00:14]} 57. Nd6+ {[%clk 0:00:03]}  Ka4 {[%clk 0:00:14]} 58. Nxc4 {[%clk 0:00:04]}  Bxg4 {[%clk 0:00:13]} 59. Ne5 {[%clk 0:00:04]}  Bc8 {[%clk 0:00:13]} 60. Kd3 {[%clk 0:00:05]}  Bf5+ {[%clk 0:00:12]} 61. Kc4 {[%clk 0:00:05]}  Ne3+ {[%clk 0:00:12]} 62. Kc5 {[%clk 0:00:05]}  Nf1 {[%clk 0:00:12]} 63. b5 {[%clk 0:00:05]}  Nxg3 {[%clk 0:00:12]} 64. b6 {[%clk 0:00:06]}  Ne4+ {[%clk 0:00:07]} 65. Kc6 {[%clk 0:00:06]}  Nxc3 {[%clk 0:00:07]} 66. Kc7 {[%clk 0:00:04]}  Nd5+ {[%clk 0:00:07]} 67. Kc6 {[%clk 0:00:04]}  Nxb6 {[%clk 0:00:05]} 68. Kxb6 {[%clk 0:00:04]}  g4 {[%clk 0:00:05]} 69. Kc5 {[%clk 0:00:04]}  g3 {[%clk 0:00:05]} 70. Nf3 {[%clk 0:00:04]}  Be4 {[%clk 0:00:05]} 71. Ng1 {[%clk 0:00:04]}  h5 {[%clk 0:00:04]} 72. d5 {[%clk 0:00:05]}  h4 {[%clk 0:00:04]} 73. Kd4 {[%clk 0:00:03]}  Bf5 {[%clk 0:00:04]} 74. Ke5 {[%clk 0:00:04]}  h3 {[%clk 0:00:03]} 75. Kxf5 {[%clk 0:00:00]}  h2 {[%clk 0:00:03]} 0-1


[Site "https://www.chess.com"]

[Event "Titled Tuesday Blitz August 22 Early 2023"]
[White "Czopor, Maciej"]
[Black "Baches Garcia, Guillermo"]
[WhiteFideId "21805431"]
[BlackFideId "2209764"]
[WhiteElo "2603"]
[BlackElo "2439"]
[Result "1-0"]
[Round "11"]
[TimeControl "180+1"]
[Date "2023.08.22"]
[WhiteClock "0:02:54"]
[BlackClock "0:00:00"]
[Board "73"]

1. d4 {[%clk 0:02:59]}  Nf6 {[%clk 0:02:59]} 2. c4 {[%clk 0:03:00]}  e6 {[%clk 0:03:00]} 3. g4 {[%clk 0:02:59]}  Nxg4 {[%clk 0:02:57]} 4. e4 {[%clk 0:02:59]}  Nf6 {[%clk 0:02:52]} 5. e5 {[%clk 0:03:00]}  Ng8 {[%clk 0:02:52]} 6. Nc3 {[%clk 0:03:00]}  d5 {[%clk 0:02:51]} 7. Qe2 {[%clk 0:03:01]}  Bb4 {[%clk 0:02:41]} 8. Nf3 {[%clk 0:03:01]}  Ne7 {[%clk 0:02:37]} 9. Rg1 {[%clk 0:03:01]}  Nf5 {[%clk 0:02:36]} 10. Bh3 {[%clk 0:03:02]}  Ne7 {[%clk 0:02:16]} 11. Rxg7 {[%clk 0:02:53]}  Ng6 {[%clk 0:00:00]} 12. Ng5 {[%clk 0:02:54]} 1-0


[Site "https://www.chess.com"]

[Event "Titled Tuesday Blitz August 22 Early 2023"]
[White "laimis61"]
[Black "Rosen, Eric"]
[BlackFideId "2032562"]
[WhiteElo "2316"]
[BlackElo "2588"]
[Result "1-0"]
[Round "11"]
[TimeControl "180+1"]
[Date "2023.08.22"]
[WhiteClock "0:00:25"]
[BlackClock "0:00:00"]
[Board "75"]

1. e4 {[%clk 0:03:00]}  e5 {[%clk 0:02:58]} 2. Nf3 {[%clk 0:02:59]}  Nf6 {[%clk 0:02:59]} 3. d4 {[%clk 0:02:58]}  Nxe4 {[%clk 0:02:59]} 4. Bd3 {[%clk 0:02:57]}  Nc6 {[%clk 0:02:58]} 5. Nxe5 {[%clk 0:02:29]}  Nxe5 {[%clk 0:02:45]} 6. dxe5 {[%clk 0:02:28]}  Nc5 {[%clk 0:02:43]} 7. Bc4 {[%clk 0:02:26]}  d6 {[%clk 0:02:43]} 8. exd6 {[%clk 0:02:24]}  Bxd6 {[%clk 0:02:40]} 9. O-O {[%clk 0:02:24]}  Qh4 {[%clk 0:02:15]} 10. Qe2+ {[%clk 0:02:20]}  Be6 {[%clk 0:02:07]} 11. Bb5+ {[%clk 0:02:14]}  c6 {[%clk 0:02:03]} 12. g3 {[%clk 0:02:13]}  Qh3 {[%clk 0:01:46]} 13. Bc4 {[%clk 0:02:07]}  O-O-O {[%clk 0:01:40]} 14. Bxe6+ {[%clk 0:02:05]}  Nxe6 {[%clk 0:01:40]} 15. Nc3 {[%clk 0:02:02]}  Nd4 {[%clk 0:01:33]} 16. Qd3 {[%clk 0:01:49]}  Bc5 {[%clk 0:01:15]} 17. Ne4 {[%clk 0:01:39]}  Be7 {[%clk 0:01:01]} 18. Bf4 {[%clk 0:01:30]}  f5 {[%clk 0:00:49]} 19. Nd6+ {[%clk 0:01:25]}  Bxd6 {[%clk 0:00:36]} 20. Qxd4 {[%clk 0:01:24]}  Bxf4 {[%clk 0:00:17]} 21. Qxf4 {[%clk 0:01:24]}  h6 {[%clk 0:00:15]} 22. Rfe1 {[%clk 0:01:19]}  g5 {[%clk 0:00:14]} 23. Qa4 {[%clk 0:01:16]}  f4 {[%clk 0:00:05]} 24. Qxa7 {[%clk 0:01:13]}  f3 {[%clk 0:00:04]} 25. Qa8+ {[%clk 0:01:03]}  Kc7 {[%clk 0:00:05]} 26. Qa5+ {[%clk 0:01:02]}  Kb8 {[%clk 0:00:05]} 27. Qe5+ {[%clk 0:01:01]}  Ka7 {[%clk 0:00:02]} 28. Qa5+ {[%clk 0:00:59]}  Kb8 {[%clk 0:00:03]} 29. Qe5+ {[%clk 0:00:59]}  Kc8 {[%clk 0:00:03]} 30. Qe6+ {[%clk 0:00:59]}  Qxe6 {[%clk 0:00:03]} 31. Rxe6 {[%clk 0:00:58]}  Rd2 {[%clk 0:00:04]} 32. Rf6 {[%clk 0:00:44]}  g4 {[%clk 0:00:03]} 33. Re1 {[%clk 0:00:41]}  Rxc2 {[%clk 0:00:03]} 34. h3 {[%clk 0:00:39]}  h5 {[%clk 0:00:03]} 35. Rf4 {[%clk 0:00:39]}  Rg8 {[%clk 0:00:02]} 36. Re7 {[%clk 0:00:34]}  Rxb2 {[%clk 0:00:02]} 37. Rh7 {[%clk 0:00:31]}  Rb1+ {[%clk 0:00:02]} 38. Kh2 {[%clk 0:00:31]}  Rf1 {[%clk 0:00:03]} 39. hxg4 {[%clk 0:00:31]}  Rxf2+ {[%clk 0:00:02]} 40. Kh3 {[%clk 0:00:30]}  hxg4+ {[%clk 0:00:02]} 41. Rxg4 {[%clk 0:00:31]}  Rxg4 {[%clk 0:00:03]} 42. Kxg4 {[%clk 0:00:30]}  Rxa2 {[%clk 0:00:03]} 43. Rf7 {[%clk 0:00:29]}  Ra3 {[%clk 0:00:03]} 44. Kh4 {[%clk 0:00:28]}  Kb8 {[%clk 0:00:03]} 45. g4 {[%clk 0:00:28]}  Ka7 {[%clk 0:00:03]} 46. g5 {[%clk 0:00:28]}  Kb6 {[%clk 0:00:03]} 47. g6 {[%clk 0:00:28]}  Ra8 {[%clk 0:00:03]} 48. g7 {[%clk 0:00:27]}  Rg8 {[%clk 0:00:03]} 49. Kg5 {[%clk 0:00:27]}  Kc5 {[%clk 0:00:03]} 50. Kg6 {[%clk 0:00:27]}  b5 {[%clk 0:00:03]} 51. Rxf3 {[%clk 0:00:26]}  Kc4 {[%clk 0:00:00]} 52. Kf7 {[%clk 0:00:25]} 1-0


[Site "https://www.chess.com"]

[Event "Titled Tuesday Blitz August 22 Early 2023"]
[White "Blanco Ronquillo, Humberto L."]
[Black "Dwilewicz, Katarzyna"]
[WhiteFideId "3504239"]
[BlackFideId "1148486"]
[WhiteElo "2691"]
[BlackElo "2432"]
[Result "1-0"]
[Round "11"]
[TimeControl "180+1"]
[Date "2023.08.22"]
[WhiteClock "0:00:06"]
[BlackClock "0:00:00"]
[Board "76"]

1. e4 {[%clk 0:03:00]}  c5 {[%clk 0:02:57]} 2. Nf3 {[%clk 0:03:00]}  d6 {[%clk 0:02:56]} 3. Bb5+ {[%clk 0:03:00]}  Bd7 {[%clk 0:02:55]} 4. Bxd7+ {[%clk 0:03:00]}  Qxd7 {[%clk 0:02:56]} 5. c4 {[%clk 0:03:00]}  Nc6 {[%clk 0:02:56]} 6. d4 {[%clk 0:02:59]}  cxd4 {[%clk 0:02:56]} 7. Nxd4 {[%clk 0:03:00]}  Nf6 {[%clk 0:02:56]} 8. Nc3 {[%clk 0:03:00]}  g6 {[%clk 0:02:56]} 9. f3 {[%clk 0:02:59]}  Bg7 {[%clk 0:02:56]} 10. Be3 {[%clk 0:02:59]}  O-O {[%clk 0:02:56]} 11. Rc1 {[%clk 0:03:00]}  Rac8 {[%clk 0:02:55]} 12. b3 {[%clk 0:02:58]}  Rfd8 {[%clk 0:02:56]} 13. O-O {[%clk 0:02:54]}  e6 {[%clk 0:02:54]} 14. Nxc6 {[%clk 0:02:54]}  bxc6 {[%clk 0:02:51]} 15. Qe2 {[%clk 0:02:33]}  Qb7 {[%clk 0:02:48]} 16. Rfd1 {[%clk 0:02:28]}  a6 {[%clk 0:02:41]} 17. c5 {[%clk 0:02:20]}  d5 {[%clk 0:02:40]} 18. e5 {[%clk 0:02:20]}  Nd7 {[%clk 0:02:38]} 19. Bd4 {[%clk 0:02:18]}  Qb8 {[%clk 0:02:20]} 20. f4 {[%clk 0:02:16]}  Re8 {[%clk 0:02:20]} 21. g3 {[%clk 0:01:44]}  f6 {[%clk 0:02:20]} 22. exf6 {[%clk 0:01:45]}  Nxf6 {[%clk 0:02:15]} 23. Re1 {[%clk 0:01:40]}  Kf7 {[%clk 0:02:12]} 24. Kh1 {[%clk 0:01:39]}  Qb7 {[%clk 0:02:06]} 25. Qd3 {[%clk 0:01:26]}  a5 {[%clk 0:01:59]} 26. Re2 {[%clk 0:01:22]}  Re7 {[%clk 0:01:51]} 27. Rce1 {[%clk 0:01:22]}  Rce8 {[%clk 0:01:52]} 28. Kg2 {[%clk 0:01:22]}  Qc8 {[%clk 0:01:44]} 29. h3 {[%clk 0:01:21]}  h5 {[%clk 0:01:39]} 30. Be5 {[%clk 0:01:19]}  Nd7 {[%clk 0:01:32]} 31. Bxg7 {[%clk 0:01:15]}  Kxg7 {[%clk 0:01:32]} 32. Nb1 {[%clk 0:01:06]}  Kf7 {[%clk 0:01:28]} 33. Qc2 {[%clk 0:00:57]}  Qb8 {[%clk 0:01:19]} 34. Nd2 {[%clk 0:00:55]}  Qb5 {[%clk 0:01:14]} 35. Nf3 {[%clk 0:00:52]}  Kg7 {[%clk 0:01:00]} 36. Nh4 {[%clk 0:00:42]}  Nf8 {[%clk 0:00:56]} 37. Re5 {[%clk 0:00:42]}  Rf7 {[%clk 0:00:45]} 38. Rg5 {[%clk 0:00:35]}  Rf6 {[%clk 0:00:46]} 39. f5 {[%clk 0:00:35]}  e5 {[%clk 0:00:40]} 40. fxg6 {[%clk 0:00:34]}  e4 {[%clk 0:00:31]} 41. Nf5+ {[%clk 0:00:30]}  Rxf5 {[%clk 0:00:23]} 42. Rxf5 {[%clk 0:00:30]}  Nxg6 {[%clk 0:00:24]} 43. Qc3+ {[%clk 0:00:27]}  Kh6 {[%clk 0:00:21]} 44. Qf6 {[%clk 0:00:25]}  Qd3 {[%clk 0:00:17]} 45. Qg5+ {[%clk 0:00:24]}  Kg7 {[%clk 0:00:16]} 46. Rf6 {[%clk 0:00:21]}  e3 {[%clk 0:00:11]} 47. Kg1 {[%clk 0:00:10]}  e2 {[%clk 0:00:11]} 48. Rxc6 {[%clk 0:00:10]}  Qd4+ {[%clk 0:00:11]} 49. Kg2 {[%clk 0:00:09]}  Qe4+ {[%clk 0:00:11]} 50. Kh2 {[%clk 0:00:09]}  Rf8 {[%clk 0:00:10]} 51. Rxg6+ {[%clk 0:00:07]}  Qxg6 {[%clk 0:00:10]} 52. Qxg6+ {[%clk 0:00:08]}  Kxg6 {[%clk 0:00:10]} 53. Rxe2 {[%clk 0:00:08]}  Rc8 {[%clk 0:00:11]} 54. Rc2 {[%clk 0:00:06]}  Rc6 {[%clk 0:00:10]} 55. a3 {[%clk 0:00:06]}  Kf5 {[%clk 0:00:10]} 56. b4 {[%clk 0:00:06]}  axb4 {[%clk 0:00:10]} 57. axb4 {[%clk 0:00:07]}  Ke4 {[%clk 0:00:10]} 58. b5 {[%clk 0:00:08]}  Rc8 {[%clk 0:00:11]} 59. c6 {[%clk 0:00:08]}  d4 {[%clk 0:00:11]} 60. c7 {[%clk 0:00:07]}  d3 {[%clk 0:00:11]} 61. Rc6 {[%clk 0:00:04]}  Kd5 {[%clk 0:00:08]} 62. Rc1 {[%clk 0:00:02]}  d2 {[%clk 0:00:04]} 63. Rd1 {[%clk 0:00:03]}  Rxc7 {[%clk 0:00:05]} 64. Rxd2+ {[%clk 0:00:04]}  Ke4 {[%clk 0:00:03]} 65. h4 {[%clk 0:00:04]}  Rb7 {[%clk 0:00:04]} 66. Rb2 {[%clk 0:00:05]}  Kf3 {[%clk 0:00:02]} 67. b6 {[%clk 0:00:06]}  Ke4 {[%clk 0:00:00]} 68. Rb5 {[%clk 0:00:06]} 1-0


[Site "https://www.chess.com"]

[Event "Titled Tuesday Blitz August 22 Early 2023"]
[White "Kavutskiy, Konstantin"]
[Black "Seletsky, Grigory"]
[WhiteFideId "2026384"]
[BlackFideId "14112191"]
[WhiteElo "2660"]
[BlackElo "2477"]
[Result "1-0"]
[Round "11"]
[TimeControl "180+1"]
[Date "2023.08.22"]
[WhiteClock "0:00:09"]
[BlackClock "0:00:00"]
[Board "80"]

1. e4 {[%clk 0:03:00]}  e6 {[%clk 0:02:44]} 2. d4 {[%clk 0:03:00]}  d5 {[%clk 0:02:45]} 3. Nd2 {[%clk 0:03:00]}  c5 {[%clk 0:02:40]} 4. Ngf3 {[%clk 0:02:57]}  cxd4 {[%clk 0:02:32]} 5. Nxd4 {[%clk 0:02:56]}  Nc6 {[%clk 0:02:33]} 6. Bb5 {[%clk 0:02:54]}  Bd7 {[%clk 0:02:31]} 7. Nxc6 {[%clk 0:02:53]}  Bxc6 {[%clk 0:02:29]} 8. Bxc6+ {[%clk 0:02:51]}  bxc6 {[%clk 0:02:29]} 9. O-O {[%clk 0:02:51]}  Nf6 {[%clk 0:02:29]} 10. Qe2 {[%clk 0:02:48]}  Be7 {[%clk 0:02:28]} 11. b3 {[%clk 0:02:46]}  O-O {[%clk 0:02:29]} 12. Bb2 {[%clk 0:02:46]}  a5 {[%clk 0:02:28]} 13. a4 {[%clk 0:02:44]}  c5 {[%clk 0:02:27]} 14. Rad1 {[%clk 0:02:39]}  Qc7 {[%clk 0:02:25]} 15. c4 {[%clk 0:02:24]}  d4 {[%clk 0:02:24]} 16. e5 {[%clk 0:02:24]}  Nd7 {[%clk 0:02:23]} 17. f4 {[%clk 0:02:24]}  Rae8 {[%clk 0:02:12]} 18. Rf3 {[%clk 0:02:22]}  f6 {[%clk 0:02:12]} 19. exf6 {[%clk 0:02:18]}  Bxf6 {[%clk 0:02:11]} 20. Qd3 {[%clk 0:02:12]}  e5 {[%clk 0:02:11]} 21. Re1 {[%clk 0:01:41]}  exf4 {[%clk 0:02:05]} 22. Rxe8 {[%clk 0:01:38]}  Rxe8 {[%clk 0:02:04]} 23. Rh3 {[%clk 0:01:37]}  Nf8 {[%clk 0:01:52]} 24. Nf1 {[%clk 0:01:36]}  g5 {[%clk 0:01:46]} 25. Qf5 {[%clk 0:01:32]}  Qe5 {[%clk 0:01:45]} 26. Qd3 {[%clk 0:01:24]}  Qe2 {[%clk 0:01:44]} 27. Qf5 {[%clk 0:01:24]}  Bg7 {[%clk 0:01:26]} 28. Ba3 {[%clk 0:01:14]}  Qd1 {[%clk 0:01:13]} 29. Bxc5 {[%clk 0:01:09]}  Re1 {[%clk 0:01:11]} 30. Rf3 {[%clk 0:01:09]}  Ne6 {[%clk 0:00:53]} 31. Qd5 {[%clk 0:01:01]}  d3 {[%clk 0:00:50]} 32. Be3 {[%clk 0:00:50]}  Kf7 {[%clk 0:00:35]} 33. Qd7+ {[%clk 0:00:28]}  Kf6 {[%clk 0:00:34]} 34. Bd4+ {[%clk 0:00:28]}  Nxd4 {[%clk 0:00:35]} 35. Qxd4+ {[%clk 0:00:29]}  Kg6 {[%clk 0:00:35]} 36. Qxd3+ {[%clk 0:00:23]}  Qxd3 {[%clk 0:00:34]} 37. Rxd3 {[%clk 0:00:24]}  Kf5 {[%clk 0:00:32]} 38. Kf2 {[%clk 0:00:23]}  Rb1 {[%clk 0:00:31]} 39. Nd2 {[%clk 0:00:22]}  Ke6 {[%clk 0:00:28]} 40. h3 {[%clk 0:00:21]}  Rb2 {[%clk 0:00:26]} 41. Kf3 {[%clk 0:00:20]}  Bc3 {[%clk 0:00:20]} 42. Ne4 {[%clk 0:00:16]}  Be1 {[%clk 0:00:19]} 43. Nxg5+ {[%clk 0:00:16]}  Kf5 {[%clk 0:00:17]} 44. Rd5+ {[%clk 0:00:16]}  Kg6 {[%clk 0:00:17]} 45. Kxf4 {[%clk 0:00:16]}  Rxg2 {[%clk 0:00:13]} 46. Ne4 {[%clk 0:00:16]}  h6 {[%clk 0:00:10]} 47. Rd6+ {[%clk 0:00:15]}  Kg7 {[%clk 0:00:10]} 48. c5 {[%clk 0:00:15]}  Rb2 {[%clk 0:00:07]} 49. Rb6 {[%clk 0:00:13]}  Rc2 {[%clk 0:00:06]} 50. c6 {[%clk 0:00:12]}  Kg6 {[%clk 0:00:05]} 51. Ke5 {[%clk 0:00:09]}  Kh5 {[%clk 0:00:04]} 52. Nd6 {[%clk 0:00:08]}  Bg3+ {[%clk 0:00:03]} 53. Ke6 {[%clk 0:00:08]}  Re2+ {[%clk 0:00:00]} 54. Kd7 {[%clk 0:00:09]} 1-0


[Site "https://www.chess.com"]